[Event "Snabbschacks-SM 2025"]
[Site "Norrköping, Sweden"]
[Date "2025.09.27"]
[Round "3.6"]
[White "Ask, Josef"]
[Black "Smith, Axel"]
[Result "0-1"]
[TimeControl "25 min + 10 sec/move"]
[WhiteTitle "FM"]
[BlackTitle "GM"]
[WhiteElo "2047"]
[BlackElo "2431"]

1. g4 {[%clk 00:25:17]} {[%emt 00:00:02]} d6 {[%clk 00:24:47]} {[%emt
00:00:33]} 2. h3 {[%clk 00:25:20]} {[%emt 00:00:06]} c5 {[%clk 00:24:37]}
{[%emt 00:00:21]} 3. Bg2 {[%clk 00:25:27]} {[%emt 00:00:03]} g6 {[%clk
00:24:44]} {[%emt 00:00:03]} 4. c4 {[%clk 00:25:00]} {[%emt 00:00:37]} Bg7
{[%clk 00:24:47]} {[%emt 00:00:07]} 5. Nc3 {[%clk 00:25:06]} {[%emt 00:00:04]}
Nc6 {[%clk 00:24:25]} {[%emt 00:00:33]} 6. d3 {[%clk 00:25:06]} {[%emt
00:00:10]} e6 {[%clk 00:24:20]} {[%emt 00:00:15]} 7. Nf3 {[%clk 00:24:59]}
{[%emt 00:00:16]} Nge7 {[%clk 00:24:23]} {[%emt 00:00:07]} 8. Bd2 {[%clk
00:24:21]} {[%emt 00:00:48]} a6 {[%clk 00:24:15]} {[%emt 00:00:19]} 9. Qc1
{[%clk 00:24:10]} {[%emt 00:00:20]} h5 {[%clk 00:23:31]} {[%emt 00:00:54]} 10.
g5 {[%clk 00:23:56]} {[%emt 00:00:24]} d5 {[%clk 00:19:41]} {[%emt 00:04:00]}
11. O-O {[%clk 00:23:41]} {[%emt 00:00:26]} O-O {[%clk 00:19:37]} {[%emt
00:00:14]} 12. Rd1 {[%clk 00:23:26]} {[%emt 00:00:24]} b6 {[%clk 00:18:45]}
{[%emt 00:01:03]} 13. cxd5 {[%clk 00:21:13]} {[%emt 00:02:23]} exd5 {[%clk
00:18:38]} {[%emt 00:00:16]} 14. e4 {[%clk 00:21:05]} Be6 {[%clk 00:18:28]}
{[%emt 00:00:38]} 15. Ne2 {[%clk 00:20:57]} Rc8 {[%clk 00:15:22]} {[%emt
00:03:35]} 16. Nf4 {[%clk 00:20:59]} Qd7 {[%clk 00:15:22]} {[%emt 00:00:17]} 17.
Nxe6 {[%clk 00:18:41]} Qxe6 {[%clk 00:14:59]} {[%emt 00:03:02]} 18. Re1 {[%clk
00:18:24]} Qd7 {[%clk 00:14:43]} {[%emt 00:00:52]} 19. e5 {[%clk 00:16:39]}
{[%emt 00:01:56]} Nf5 {[%clk 00:14:24]} {[%emt 00:00:29]} 20. Bf4 {[%clk
00:16:14]} {[%emt 00:00:35]} Rfe8 {[%clk 00:14:19]} {[%emt 00:00:15]} 21. Qd2
{[%clk 00:15:59]} {[%emt 00:00:25]} Re7 {[%clk 00:13:36]} {[%emt 00:00:53]} 22.
h4 {[%clk 00:14:19]} {[%emt 00:01:50]} Rce8 {[%clk 00:13:00]} {[%emt 00:00:46]}
23. Qc3 {[%clk 00:13:52]} {[%emt 00:00:36]} Ncd4 {[%clk 00:12:09]} {[%emt
00:01:01]} 24. Nxd4 {[%clk 00:10:41]} {[%emt 00:03:21]} Nxd4 {[%clk 00:12:18]}
{[%emt 00:00:02]} 25. Bg3 {[%clk 00:08:23]} {[%emt 00:02:28]} Bxe5 {[%clk
00:12:05]} {[%emt 00:00:22]} 26. Rxe5 {[%clk 00:07:34]} {[%emt 00:01:00]} Rxe5
{[%clk 00:12:13]} {[%emt 00:00:01]} 27. Kh2 {[%clk 00:07:31]} {[%emt 00:00:13]}
Ne2 {[%clk 00:10:00]} {[%emt 00:02:24]} 28. Qd2 {[%clk 00:06:16]} {[%emt
00:01:24]} Nxg3 {[%clk 00:10:07]} {[%emt 00:00:03]} 29. fxg3 {[%clk 00:06:26]}
Re2 {[%clk 00:09:55]} {[%emt 00:00:21]} 30. Qf4 {[%clk 00:06:33]} {[%emt
00:00:03]} Rxb2 {[%clk 00:09:25]} {[%emt 00:00:41]} 31. Kg1 {[%clk 00:04:39]}
{[%emt 00:02:03]} Qe6 {[%clk 00:07:44]} {[%emt 00:01:51]} 32. Rf1 {[%clk
00:04:19]} {[%emt 00:00:31]} Qe3+ {[%clk 00:06:22]} {[%emt 00:01:32]} 33. Qxe3
{[%clk 00:04:04]} {[%emt 00:00:25]} Rxg2+ {[%clk 00:04:08]} {[%emt 00:02:23]}
34. Kxg2 {[%clk 00:04:12]} {[%emt 00:00:01]} Rxe3 {[%clk 00:04:17]} {[%emt
00:00:02]} 35. Rf6 {[%clk 00:04:13]} {[%emt 00:00:09]} Rxd3 {[%emt 00:00:25]}
36. Rxb6 {[%clk 00:04:17]} {[%emt 00:00:06]} Rd2+ {[%clk 00:04:11]} {[%emt
00:00:01]} 37. Kf3 {[%clk 00:04:23]} {[%emt 00:00:04]} Rxa2 {[%clk 00:04:18]}
{[%emt 00:00:03]} 38. Rd6 {[%clk 00:04:23]} {[%emt 00:00:10]} Ra3+ {[%clk
00:03:40]} {[%emt 00:00:48]} 39. Kf4 {[%clk 00:04:25]} {[%emt 00:00:08]} Rd3
{[%clk 00:03:24]} {[%emt 00:00:26]} 40. Rxa6 {[%clk 00:04:24]} {[%emt
00:00:12]} c4 {[%clk 00:03:25]} {[%emt 00:00:09]} 41. Rc6 {[%clk 00:04:16]}
{[%emt 00:00:17]} c3 {[%clk 00:03:24]} {[%emt 00:00:11]} 42. Ke5 {[%clk
00:03:50]} {[%emt 00:00:36]} Kg7 {[%clk 00:02:42]} {[%emt 00:00:51]} 43. Kf4
{[%clk 00:03:32]} {[%emt 00:00:28]} d4 {[%clk 00:02:16]} {[%emt 00:00:37]} 44.
g4 {[%clk 00:03:24]} {[%emt 00:00:18]} hxg4 {[%clk 00:02:13]} {[%emt 00:00:12]}
45. Kxg4 {[%clk 00:03:29]} Rd2 {[%clk 00:02:00]} {[%emt 00:00:29]} 46. Kf4
{[%clk 00:03:33]} c2 {[%clk 00:02:00]} {[%emt 00:00:16]} 47. Rc7 {[%clk
00:02:10]} d3 {[%clk 00:02:08]} {[%emt 00:01:35]} 48. Ke5 {[%clk 00:01:25]} Rd1
{[%clk 00:02:16]} {[%emt 00:00:57]} 49. h5 {[%clk 00:01:20]} {[%emt 00:00:15]}
gxh5 {[%clk 00:02:24]} {[%emt 00:00:02]} 0-1

[Event "Snabbschacks-SM 2025"]
[Site "Norrköping, Sweden"]
[Date "2025.09.27"]
[Round "5.2"]
[White "Lindh, Fredrik"]
[Black "Muntean, Victor"]
[Result "0-1"]
[TimeControl "25 min + 10 sec/move"]
[WhiteTitle "FM"]
[WhiteElo "2249"]
[BlackElo "2151"]

1. e4 {[%clk 00:25:18]} {[%emt 00:00:02]} e5 {[%clk 00:25:19]} {[%emt
00:00:02]} 2. Nf3 {[%clk 00:25:26]} {[%emt 00:00:01]} Nc6 {[%clk 00:25:28]}
{[%emt 00:00:02]} 3. Bb5 {[%clk 00:25:33]} a6 {[%clk 00:25:36]} {[%emt
00:00:03]} 4. Ba4 {[%clk 00:25:42]} f5 {[%clk 00:25:45]} {[%emt 00:00:01]} 5.
d4 {[%clk 00:25:05]} {[%emt 00:00:47]} exd4 {[%clk 00:25:53]} {[%emt 00:00:02]}
6. e5 {[%clk 00:24:58]} {[%emt 00:00:17]} b5 {[%clk 00:26:01]} {[%emt
00:00:02]} 7. Bb3 {[%clk 00:25:05]} {[%emt 00:00:03]} Na5 {[%clk 00:26:09]}
{[%emt 00:00:02]} 8. Bxg8 {[%clk 00:21:49]} {[%emt 00:03:27]} Rxg8 {[%clk
00:26:17]} {[%emt 00:00:02]} 9. Nxd4 {[%clk 00:21:56]} {[%emt 00:00:02]} g6
{[%clk 00:20:51]} {[%emt 00:05:36]} 10. Nc3 {[%clk 00:14:19]} {[%emt 00:07:47]}
Bb7 {[%clk 00:19:43]} {[%emt 00:01:18]} 11. O-O {[%clk 00:13:51]} {[%emt
00:00:37]} Qe7 {[%clk 00:17:32]} {[%emt 00:02:22]} 12. Nf3 {[%clk 00:12:15]}
{[%emt 00:01:47]} Qe6 {[%clk 00:14:49]} {[%emt 00:02:52]} 13. Bg5 {[%clk
00:10:21]} {[%emt 00:02:03]} b4 {[%clk 00:14:22]} {[%emt 00:00:38]} 14. Nd4
{[%clk 00:08:03]} {[%emt 00:02:29]} Qc4 {[%clk 00:13:13]} {[%emt 00:01:18]} 15.
Nce2 {[%clk 00:05:58]} {[%emt 00:02:14]} Bc5 {[%clk 00:12:23]} {[%emt
00:01:02]} 16. b3 {[%clk 00:03:45]} {[%emt 00:02:22]} Qd5 {[%clk 00:12:15]}
{[%emt 00:00:17]} 17. Nf3 {[%clk 00:03:54]} {[%emt 00:00:02]} Qxd1 {[%clk
00:10:48]} {[%emt 00:01:37]} 18. Raxd1 {[%clk 00:04:02]} {[%emt 00:00:02]} Bxf3
{[%clk 00:10:46]} {[%emt 00:00:12]} 19. gxf3 {[%clk 00:04:11]} {[%emt
00:00:01]} Nc6 {[%clk 00:10:52]} {[%emt 00:00:04]} 20. Rd5 {[%clk 00:03:25]}
{[%emt 00:00:56]} Be7 {[%clk 00:10:40]} {[%emt 00:00:22]} 21. Bxe7 {[%clk
00:03:18]} {[%emt 00:00:17]} Nxe7 {[%clk 00:10:41]} {[%emt 00:00:09]} 22. Rc5
{[%clk 00:02:59]} {[%emt 00:00:29]} O-O-O {[%clk 00:09:13]} {[%emt 00:01:37]}
23. c3 {[%clk 00:03:02]} {[%emt 00:00:08]} bxc3 {[%clk 00:08:48]} {[%emt
00:00:35]} 24. Rc1 {[%clk 00:03:10]} {[%emt 00:00:02]} Rde8 {[%clk 00:08:00]}
{[%emt 00:00:58]} 25. Nd4 {[%clk 00:01:45]} {[%emt 00:01:35]} Kb7 {[%clk
00:06:07]} {[%emt 00:02:03]} 26. R1xc3 {[%clk 00:01:53]} {[%emt 00:00:02]} c6
{[%clk 00:06:04]} {[%emt 00:00:13]} 27. R3c4 {[%clk 00:01:08]} {[%emt
00:00:55]} Kb6 {[%clk 00:04:40]} {[%emt 00:01:35]} 28. a4 {[%clk 00:01:17]} a5
{[%clk 00:04:35]} {[%emt 00:00:15]} 29. b4 {[%clk 00:01:10]} {[%emt 00:00:16]}
axb4 {[%clk 00:04:40]} {[%emt 00:00:05]} 30. a5+ {[%clk 00:00:55]} {[%emt
00:00:25]} Ka6 {[%clk 00:04:30]} {[%emt 00:00:20]} 31. Rxb4 {[%clk 00:01:02]}
{[%emt 00:00:02]} Nd5 {[%clk 00:04:34]} {[%emt 00:00:07]} 32. Rb1 {[%clk
00:00:37]} {[%emt 00:00:36]} Rxe5 {[%clk 00:04:27]} {[%emt 00:00:16]} 33. Nc2
{[%clk 00:00:32]} {[%emt 00:00:15]} Ree8 {[%clk 00:04:08]} {[%emt 00:00:29]} 34.
Ne3 {[%clk 00:00:19]} {[%emt 00:00:23]} Nxe3 {[%clk 00:03:55]} {[%emt
00:00:22]} 35. Rb6+ {[%clk 00:00:27]} {[%emt 00:00:02]} Ka7 {[%clk 00:04:04]}
{[%emt 00:00:01]} 36. fxe3 {[%clk 00:00:35]} {[%emt 00:00:02]} Rxe3 {[%clk
00:03:49]} {[%emt 00:00:26]} 37. Kf2 {[%clk 00:00:42]} {[%emt 00:00:02]} Ree8
{[%clk 00:03:17]} {[%emt 00:00:42]} 38. Rb4 {[%clk 00:00:50]} {[%emt 00:00:02]}
Re6 {[%clk 00:02:49]} {[%emt 00:00:37]} 39. Rc3 {[%clk 00:00:37]} {[%emt
00:00:24]} Rb8 {[%clk 00:02:50]} {[%emt 00:00:09]} 40. Rd4 {[%clk 00:00:42]}
{[%emt 00:00:05]} d5 {[%clk 00:02:54]} {[%emt 00:00:06]} 41. h4 {[%clk
00:00:50]} {[%emt 00:00:02]} Rb5 {[%clk 00:02:53]} {[%emt 00:00:11]} 42. h5
{[%clk 00:00:50]} {[%emt 00:00:11]} Rxa5 {[%clk 00:02:48]} {[%emt 00:00:15]} 43.
hxg6 {[%clk 00:00:54]} {[%emt 00:00:05]} hxg6 {[%clk 00:02:56]} {[%emt
00:00:01]} 44. Rb4 {[%clk 00:00:55]} {[%emt 00:00:10]} c5 {[%clk 00:02:22]}
{[%emt 00:00:44]} 45. Rh4 {[%clk 00:00:59]} {[%emt 00:00:06]} Kb6 {[%clk
00:02:09]} {[%emt 00:00:23]} 46. Rb3+ {[%clk 00:01:07]} {[%emt 00:00:02]} Rb5
{[%clk 00:02:17]} {[%emt 00:00:02]} 47. Ra3 {[%clk 00:01:16]} c4 {[%clk
00:02:17]} {[%emt 00:00:10]} 48. Rh6 {[%clk 00:01:22]} {[%emt 00:00:03]} Kc5
{[%clk 00:02:22]} {[%emt 00:00:06]} 0-1

[ePGN "0.1;DGT LiveChess/2.2.7"]

[Event "Snabbschacks-SM 2025"]
[Site "Norrköping, Sweden"]
[Date "2025.09.27"]
[Round "2.1"]
[White "Smith, Axel"]
[Black "Rogoz, Vladyslav"]
[Result "1/2-1/2"]
[TimeControl "25 min + 10 sec/move"]
[WhiteTitle "GM"]
[WhiteElo "2431"]
[BlackElo "2108"]

1. c4 {[%clk 00:25:20]} e6 {[%clk 00:25:17]} {[%emt 00:00:04]} 2. Nc3 {[%clk
00:25:27]} {[%emt 00:00:02]} b6 {[%clk 00:25:25]} {[%emt 00:00:03]} 3. e4
{[%clk 00:25:35]} {[%emt 00:00:02]} Bb7 {[%clk 00:25:32]} {[%emt 00:00:02]} 4.
d4 {[%clk 00:25:42]} {[%emt 00:00:03]} Bb4 {[%clk 00:25:41]} {[%emt 00:00:02]}
5. f3 {[%clk 00:25:50]} Nh6 {[%clk 00:25:07]} {[%emt 00:00:44]} 6. Nh3 {[%clk
00:24:08]} {[%emt 00:01:52]} Qh4+ {[%clk 00:23:56]} {[%emt 00:01:21]} 7. g3
{[%clk 00:23:45]} {[%emt 00:00:32]} Qf6 {[%clk 00:23:35]} {[%emt 00:00:31]} 8.
Bg2 {[%clk 00:22:17]} {[%emt 00:01:38]} c5 {[%clk 00:22:41]} {[%emt 00:01:05]}
9. a3 {[%clk 00:17:02]} {[%emt 00:05:26]} cxd4 {[%clk 00:22:32]} {[%emt
00:00:18]} 10. axb4 {[%clk 00:16:59]} {[%emt 00:00:13]} dxc3 {[%clk 00:22:39]}
{[%emt 00:00:03]} 11. Qb3 {[%clk 00:11:42]} {[%emt 00:05:27]} cxb2 {[%clk
00:21:53]} {[%emt 00:00:56]} 12. Bxb2 {[%clk 00:11:51]} e5 {[%clk 00:22:02]} 13.
f4 {[%clk 00:10:21]} {[%emt 00:01:40]} d6 {[%clk 00:22:11]} {[%emt 00:00:02]}
14. c5 {[%clk 00:08:30]} {[%emt 00:02:00]} Nd7 {[%clk 00:21:49]} {[%emt
00:00:31]} 15. cxd6 {[%clk 00:07:21]} {[%emt 00:01:20]} Qxd6 {[%clk 00:21:38]}
{[%emt 00:00:21]} 16. Rd1 {[%clk 00:06:02]} {[%emt 00:01:28]} Qe7 {[%clk
00:21:38]} {[%emt 00:00:10]} 17. fxe5 {[%clk 00:05:12]} {[%emt 00:01:00]} Nxe5
{[%clk 00:21:21]} {[%emt 00:00:27]} 18. Qa4+ {[%clk 00:05:04]} {[%emt
00:00:18]} Bc6 {[%clk 00:21:27]} {[%emt 00:00:03]} 19. b5 {[%clk 00:05:09]}
{[%emt 00:00:05]} Bb7 {[%clk 00:21:25]} {[%emt 00:00:13]} 20. O-O {[%clk
00:04:43]} {[%emt 00:00:36]} Nhg4 {[%clk 00:19:52]} {[%emt 00:01:43]} 21. Qb3
{[%clk 00:02:43]} {[%emt 00:02:10]} Qc5+ {[%clk 00:18:18]} {[%emt 00:01:45]} 22.
Bd4 {[%clk 00:02:49]} {[%emt 00:00:03]} Qe7 {[%clk 00:18:04]} {[%emt 00:00:24]}
23. Bb2 {[%clk 00:02:07]} {[%emt 00:00:53]} Qc5+ {[%clk 00:18:10]} {[%emt
00:00:03]} 24. Bd4 {[%clk 00:02:16]} Qe7 {[%clk 00:18:19]} 1/2-1/2

[Event "Snabbschacks-SM 2025"]
[Site "Norrköping, Sweden"]
[Date "2025.09.27"]
[Round "3.7"]
[White "Nygren, Kim"]
[Black "Wernberg, Hugo"]
[Result "1/2-1/2"]
[TimeControl "25 min + 10 sec/move"]
[WhiteTitle "CM"]
[BlackTitle "FM"]
[WhiteElo "2173"]
[BlackElo "2285"]

1. d4 {[%clk 00:25:16]} {[%emt 00:00:03]} Nf6 {[%clk 00:25:10]} {[%emt
00:00:10]} 2. Bg5 {[%clk 00:25:20]} {[%emt 00:00:06]} d5 {[%clk 00:25:02]}
{[%emt 00:00:19]} 3. Bxf6 {[%clk 00:25:04]} {[%emt 00:00:26]} gxf6 {[%clk
00:25:08]} {[%emt 00:00:04]} 4. e3 {[%clk 00:25:05]} {[%emt 00:00:08]} c6
{[%clk 00:22:38]} {[%emt 00:02:40]} 5. c4 {[%clk 00:24:39]} {[%emt 00:00:36]}
e6 {[%clk 00:22:45]} {[%emt 00:00:03]} 6. Nc3 {[%clk 00:24:40]} {[%emt
00:00:09]} Nd7 {[%clk 00:22:48]} {[%emt 00:00:07]} 7. a3 {[%clk 00:24:17]}
{[%emt 00:00:33]} Rg8 {[%clk 00:21:44]} {[%emt 00:01:13]} 8. Qc2 {[%clk
00:23:59]} {[%emt 00:00:29]} f5 {[%clk 00:21:45]} {[%emt 00:00:09]} 9. cxd5
{[%clk 00:23:52]} {[%emt 00:00:17]} cxd5 {[%clk 00:21:16]} {[%emt 00:00:39]} 10.
Nb5 {[%clk 00:23:52]} {[%emt 00:00:09]} Qa5+ {[%clk 00:21:15]} {[%emt
00:00:11]} 11. Kd1 {[%clk 00:23:51]} {[%emt 00:00:11]} Kd8 {[%clk 00:21:18]}
{[%emt 00:00:08]} 12. Rc1 {[%clk 00:23:38]} {[%emt 00:00:23]} Nf6 {[%clk
00:14:14]} {[%emt 00:07:13]} 13. Nf3 {[%clk 00:21:57]} {[%emt 00:01:51]} Bd7
{[%clk 00:14:22]} {[%emt 00:00:03]} 14. b4 {[%clk 00:13:41]} {[%emt 00:08:26]}
Qb6 {[%clk 00:14:30]} {[%emt 00:00:02]} 15. Ne5 {[%clk 00:12:13]} {[%emt
00:01:37]} Rc8 {[%clk 00:13:54]} {[%emt 00:00:46]} 16. Nxd7 {[%clk 00:12:13]}
{[%emt 00:00:10]} Rxc2 {[%clk 00:13:33]} {[%emt 00:00:31]} 17. Nxb6 {[%clk
00:12:20]} {[%emt 00:00:04]} Rxc1+ {[%clk 00:13:40]} {[%emt 00:00:02]} 18. Kxc1
{[%clk 00:12:29]} axb6 {[%clk 00:13:49]} {[%emt 00:00:02]} 19. f3 {[%clk
00:10:48]} {[%emt 00:01:51]} Bh6 {[%clk 00:11:44]} {[%emt 00:02:15]} 20. Kd2
{[%clk 00:10:35]} {[%emt 00:00:22]} f4 {[%clk 00:11:31]} {[%emt 00:00:23]} 21.
exf4 {[%clk 00:10:22]} {[%emt 00:00:23]} Bxf4+ {[%clk 00:11:38]} {[%emt
00:00:03]} 22. Kc2 {[%clk 00:09:17]} {[%emt 00:01:15]} Kd7 {[%clk 00:10:50]}
{[%emt 00:00:59]} 23. g3 {[%clk 00:08:58]} {[%emt 00:00:29]} Rc8+ {[%clk
00:10:57]} {[%emt 00:00:02]} 24. Nc3 {[%clk 00:08:27]} {[%emt 00:00:40]} Bh6
{[%clk 00:10:27]} {[%emt 00:00:41]} 25. Bb5+ {[%clk 00:08:04]} {[%emt
00:00:33]} Ke7 {[%clk 00:09:39]} {[%emt 00:00:58]} 26. Kd3 {[%clk 00:07:58]}
{[%emt 00:00:16]} Ne8 {[%clk 00:09:47]} {[%emt 00:00:02]} 27. Bxe8 {[%clk
00:06:07]} {[%emt 00:02:01]} Kxe8 {[%clk 00:09:32]} {[%emt 00:00:26]} 28. Re1
{[%clk 00:05:51]} {[%emt 00:00:25]} Kd7 {[%clk 00:09:04]} {[%emt 00:00:39]} 29.
Na4 {[%clk 00:05:13]} {[%emt 00:00:47]} Rc1 {[%clk 00:07:22]} {[%emt 00:01:52]}
30. Rxc1 {[%clk 00:04:46]} {[%emt 00:00:38]} Bxc1 {[%clk 00:07:30]} {[%emt
00:00:02]} 31. b5 {[%clk 00:03:12]} {[%emt 00:01:44]} Kc7 {[%clk 00:07:02]}
{[%emt 00:00:38]} 32. Nc3 {[%clk 00:03:19]} {[%emt 00:00:03]} Bxa3 {[%clk
00:07:08]} {[%emt 00:00:03]} 33. f4 {[%clk 00:03:00]} {[%emt 00:00:29]} Bb4
{[%clk 00:07:14]} {[%emt 00:00:04]} 34. Nd1 {[%clk 00:02:56]} {[%emt 00:00:14]}
Kd6 {[%clk 00:07:14]} {[%emt 00:00:10]} 35. Ne3 {[%clk 00:02:59]} {[%emt
00:00:07]} Ke7 {[%clk 00:06:27]} {[%emt 00:00:56]} 36. Ng4 {[%clk 00:02:16]}
{[%emt 00:00:54]} Bd6 {[%clk 00:06:29]} {[%emt 00:00:08]} 37. Ke3 {[%clk
00:02:16]} {[%emt 00:00:10]} f6 {[%clk 00:06:18]} {[%emt 00:00:21]} 38. Kf3
{[%clk 00:02:13]} {[%emt 00:00:13]} Ba3 {[%clk 00:05:39]} {[%emt 00:00:50]} 39.
h3 {[%clk 00:01:45]} {[%emt 00:00:38]} Kf7 {[%clk 00:05:37]} {[%emt 00:00:12]}
40. Ke3 {[%clk 00:01:43]} {[%emt 00:00:11]} Kg6 {[%clk 00:05:25]} {[%emt
00:00:22]} 41. Nf2 {[%clk 00:01:36]} {[%emt 00:00:17]} Bc1+ {[%clk 00:05:32]}
{[%emt 00:00:02]} 42. Kf3 {[%clk 00:01:44]} {[%emt 00:00:03]} Bd2 {[%clk
00:05:17]} {[%emt 00:00:26]} 43. Nd3 {[%clk 00:01:36]} {[%emt 00:00:17]} Kh5
{[%clk 00:04:43]} {[%emt 00:00:44]} 44. f5 {[%clk 00:01:24]} {[%emt 00:00:22]}
exf5 {[%clk 00:04:17]} {[%emt 00:00:36]} 45. Nf4+ {[%clk 00:01:06]} {[%emt
00:00:28]} Bxf4 {[%clk 00:04:01]} {[%emt 00:00:27]} 46. Kxf4 {[%clk 00:01:14]}
{[%emt 00:00:01]} Kg6 {[%clk 00:03:56]} {[%emt 00:00:15]} 47. h4 {[%clk
00:01:17]} {[%emt 00:00:08]} h5 {[%clk 00:03:08]} {[%emt 00:00:58]} 48. Ke3
{[%clk 00:00:58]} {[%emt 00:00:28]} Kf7 {[%clk 00:03:16]} {[%emt 00:00:02]} 49.
Kf3 {[%clk 00:01:05]} {[%emt 00:00:03]} Kg7 {[%emt 00:00:46]} 1/2-1/2

[Event "Snabbschacks-SM 2025"]
[Site "Norrköping, Sweden"]
[Date "2025.09.27"]
[Round "5.3"]
[White "Ostling, Hakan"]
[Black "Smith, Axel"]
[Result "0-1"]
[TimeControl "25 min + 10 sec/move"]
[BlackTitle "GM"]
[WhiteElo "2117"]
[BlackElo "2431"]

1. f4 {[%clk 00:25:13]} {[%emt 00:00:06]} Nf6 {[%clk 00:25:17]} {[%emt
00:00:03]} 2. Nf3 {[%clk 00:25:20]} {[%emt 00:00:02]} d5 {[%clk 00:25:25]}
{[%emt 00:00:02]} 3. g3 {[%clk 00:25:24]} {[%emt 00:00:07]} c6 {[%clk
00:25:34]} {[%emt 00:00:02]} 4. Bg2 {[%clk 00:25:32]} Qb6 {[%clk 00:25:43]}
{[%emt 00:00:02]} 5. e3 {[%clk 00:25:15]} {[%emt 00:00:27]} Bg4 {[%clk
00:25:51]} {[%emt 00:00:03]} 6. h3 {[%clk 00:24:34]} {[%emt 00:00:51]} Bxf3
{[%clk 00:25:59]} {[%emt 00:00:02]} 7. Bxf3 {[%clk 00:24:36]} {[%emt 00:00:08]}
Nbd7 {[%clk 00:26:06]} {[%emt 00:00:03]} 8. d4 {[%clk 00:24:37]} {[%emt
00:00:09]} e6 {[%clk 00:24:17]} {[%emt 00:01:59]} 9. Nd2 {[%clk 00:24:22]}
{[%emt 00:00:25]} c5 {[%clk 00:23:51]} {[%emt 00:00:37]} 10. c3 {[%clk
00:24:17]} {[%emt 00:00:14]} Bd6 {[%clk 00:22:37]} {[%emt 00:01:24]} 11. Qb3
{[%clk 00:21:16]} {[%emt 00:03:11]} Qc7 {[%clk 00:19:41]} {[%emt 00:03:06]} 12.
O-O {[%clk 00:20:57]} {[%emt 00:00:28]} O-O {[%clk 00:18:42]} {[%emt 00:01:10]}
13. e4 {[%clk 00:18:29]} {[%emt 00:02:39]} dxe4 14. Nxe4 {[%clk 00:18:37]} Nxe4
{[%clk 00:18:04]} {[%emt 00:00:32]} 15. Bxe4 {[%clk 00:18:45]} {[%emt
00:00:02]} Rab8 {[%clk 00:17:25]} {[%emt 00:00:49]} 16. Be3 {[%clk 00:18:20]}
{[%emt 00:00:34]} cxd4 {[%clk 00:15:27]} {[%emt 00:02:10]} 17. cxd4 {[%clk
00:17:52]} {[%emt 00:00:38]} Nf6 {[%clk 00:15:09]} {[%emt 00:00:27]} 18. Bg2
{[%clk 00:17:43]} {[%emt 00:00:18]} Qa5 {[%clk 00:14:40]} {[%emt 00:00:41]} 19.
g4 {[%clk 00:15:40]} {[%emt 00:02:13]} Nd5 {[%clk 00:14:21]} {[%emt 00:00:28]}
20. f5 {[%clk 00:15:23]} {[%emt 00:00:27]} Nxe3 21. Qxe3 {[%clk 00:15:29]} e5
{[%clk 00:11:05]} {[%emt 00:02:43]} 22. Kh1 {[%clk 00:14:19]} {[%emt 00:01:20]}
exd4 {[%clk 00:10:42]} {[%emt 00:00:34]} 23. Qxd4 {[%clk 00:14:27]} {[%emt
00:00:02]} Be5 {[%clk 00:10:07]} {[%emt 00:00:46]} 24. Qf2 {[%clk 00:12:38]}
{[%emt 00:01:58]} Rbd8 {[%clk 00:09:49]} {[%emt 00:00:29]} 25. b4 {[%clk
00:10:46]} {[%emt 00:02:01]} Qb5 {[%clk 00:08:07]} {[%emt 00:01:53]} 26. Rab1
{[%clk 00:10:11]} {[%emt 00:00:45]} Rd4 {[%clk 00:07:35]} {[%emt 00:00:41]} 27.
Rfe1 {[%clk 00:08:31]} {[%emt 00:01:50]} f6 {[%clk 00:06:54]} {[%emt 00:00:51]}
28. a3 {[%clk 00:06:26]} {[%emt 00:02:16]} Rfd8 {[%clk 00:05:49]} {[%emt
00:01:15]} 29. Qa2+ {[%clk 00:05:36]} {[%emt 00:00:59]} Kh8 {[%clk 00:05:44]}
{[%emt 00:00:15]} 30. Qe2 {[%clk 00:04:02]} {[%emt 00:01:44]} Qa4 {[%clk
00:05:12]} {[%emt 00:00:43]} 31. Qf3 {[%clk 00:03:35]} {[%emt 00:00:37]} Rd3
{[%clk 00:04:51]} {[%emt 00:00:30]} 32. Qxb7 {[%clk 00:02:50]} {[%emt
00:00:55]} Qxa3 {[%clk 00:04:57]} {[%emt 00:00:05]} 33. Qe4 {[%clk 00:02:16]}
{[%emt 00:00:43]} Rxh3+ {[%clk 00:03:30]} {[%emt 00:01:37]} 34. Bxh3 {[%clk
00:02:25]} {[%emt 00:00:02]} Qxh3+ {[%clk 00:03:38]} {[%emt 00:00:01]} 35. Kg1
{[%clk 00:02:32]} {[%emt 00:00:02]} Bh2+ {[%clk 00:03:01]} {[%emt 00:00:48]} 36.
Kf2 {[%clk 00:02:41]} Rd2+ {[%clk 00:02:39]} {[%emt 00:00:32]} 37. Re2 {[%clk
00:02:00]} {[%emt 00:00:52]} Qg3+ {[%clk 00:02:28]} {[%emt 00:00:21]} 0-1